[Event "*** Titled Tuesday Blitz"]
[Site "Chess.com"]
[Date "2020.11.10"]
[Round "6"]
[White "Andreikka"]
[Black "anon102030"]
[Result "0-1"]
[WhiteElo "2948"]
[BlackElo "2747"]
[TimeControl "180+1"]
[EndTime "11:09:54 PST"]
[Termination "anon102030 won by checkmate"]

1. b3 {[%clk 0:03:00]} 1... e5 {[%clk 0:02:58.8]} 2. Bb2 {[%clk 0:03:00]} 2...
Nc6 {[%clk 0:02:59.3]} 3. Nf3 {[%clk 0:03:00.5]} 3... d6 {[%clk 0:02:57.2]} 4.
e3 {[%clk 0:02:59.5]} 4... g6 {[%clk 0:02:54.7]} 5. d4 {[%clk 0:02:58.3]} 5...
Bg7 {[%clk 0:02:54.4]} 6. Be2 {[%clk 0:02:57.3]} 6... Nge7 {[%clk 0:02:54.6]} 7.
O-O {[%clk 0:02:57.5]} 7... O-O {[%clk 0:02:54.4]} 8. c4 {[%clk 0:02:57.9]} 8...
exd4 {[%clk 0:02:50.5]} 9. Nxd4 {[%clk 0:02:57]} 9... Nxd4 {[%clk 0:02:42.6]}
10. Bxd4 {[%clk 0:02:57.9]} 10... Bxd4 {[%clk 0:02:38.4]} 11. Qxd4 {[%clk
0:02:58.8]} 11... Nc6 {[%clk 0:02:38.3]} 12. Qd2 {[%clk 0:02:58.7]} 12... Be6
{[%clk 0:02:37.4]} 13. Nc3 {[%clk 0:02:59.6]} 13... f5 {[%clk 0:02:36.1]} 14.
Rac1 {[%clk 0:02:59.7]} 14... Qe7 {[%clk 0:02:35.2]} 15. Nd5 {[%clk 0:02:45]}
15... Qf7 {[%clk 0:02:34.6]} 16. Rfd1 {[%clk 0:02:44]} 16... Rae8 {[%clk
0:02:32.8]} 17. g3 {[%clk 0:02:44.2]} 17... Qg7 {[%clk 0:01:56.4]} 18. Bf3
{[%clk 0:02:41.5]} 18... Ne5 {[%clk 0:01:52.5]} 19. Bg2 {[%clk 0:02:41.3]} 19...
Bc8 {[%clk 0:01:45.3]} 20. Qa5 {[%clk 0:02:40.6]} 20... c6 {[%clk 0:01:33.5]}
21. Nc3 {[%clk 0:02:39.4]} 21... b6 {[%clk 0:01:25.8]} 22. Qa3 {[%clk
0:02:36.9]} 22... g5 {[%clk 0:01:13.2]} 23. Qxd6 {[%clk 0:02:22.7]} 23... Re6
{[%clk 0:00:56.3]} 24. Qd4 {[%clk 0:02:17.5]} 24... f4 {[%clk 0:00:53.8]} 25.
Ne4 {[%clk 0:02:17]} 25... c5 {[%clk 0:00:49]} 26. Qc3 {[%clk 0:02:15.7]} 26...
fxe3 {[%clk 0:00:41.5]} 27. Qxe3 {[%clk 0:02:12.4]} 27... h6 {[%clk 0:00:34.1]}
28. Rd6 {[%clk 0:02:01.2]} 28... Rxd6 {[%clk 0:00:30.7]} 29. Nxd6 {[%clk
0:02:02.1]} 29... Ng4 {[%clk 0:00:31.4]} 30. Qe1 {[%clk 0:01:56.1]} 30... Nxf2
{[%clk 0:00:30.1]} 31. Nxc8 {[%clk 0:01:47.3]} 31... Qd4 {[%clk 0:00:29.8]} 32.
Bd5+ {[%clk 0:01:10.5]} 32... Kh8 {[%clk 0:00:29.7]} 33. Qe7 {[%clk 0:00:49.2]}
33... Nd1+ {[%clk 0:00:07.5]} 34. Kg2 {[%clk 0:00:36.6]} 34... Rf2+ {[%clk
0:00:07.3]} 35. Kh1 {[%clk 0:00:19.6]} 35... Rf1+ {[%clk 0:00:07]} 36. Kg2
{[%clk 0:00:20.2]} 36... Rf2+ {[%clk 0:00:05.6]} 37. Kh1 {[%clk 0:00:20]} 37...
Rf1+ {[%clk 0:00:04.7]} 38. Kg2 {[%clk 0:00:20.9]} 38... Qg1+ {[%clk 0:00:03.8]}
39. Kh3 {[%clk 0:00:18.5]} 39... Nf2# {[%clk 0:00:04.7]} 0-1

[Event "*** Titled Tuesday Blitz"]
[Site "Chess.com"]
[Date "2020.11.10"]
[Round "6"]
[White "kingofthenil"]
[Black "youngKID"]
[Result "0-1"]
[WhiteElo "2674"]
[BlackElo "2838"]
[TimeControl "180+1"]
[EndTime "11:09:55 PST"]
[Termination "youngKID won by resignation"]

1. d4 {[%clk 0:03:00.9]} 1... Nf6 {[%clk 0:02:59.3]} 2. c4 {[%clk 0:03:01]} 2...
g6 {[%clk 0:02:59.1]} 3. Nc3 {[%clk 0:03:01.2]} 3... Bg7 {[%clk 0:02:59.1]} 4.
Nf3 {[%clk 0:03:01.2]} 4... O-O {[%clk 0:02:58.5]} 5. Bg5 {[%clk 0:03:01.3]}
5... d6 {[%clk 0:02:56]} 6. e3 {[%clk 0:02:56.9]} 6... Nbd7 {[%clk 0:02:54]} 7.
h3 {[%clk 0:02:56.1]} 7... b6 {[%clk 0:02:54]} 8. Be2 {[%clk 0:02:54.8]} 8...
Bb7 {[%clk 0:02:54.2]} 9. Qc2 {[%clk 0:02:54.9]} 9... h6 {[%clk 0:02:53.9]} 10.
Bh4 {[%clk 0:02:54.9]} 10... e5 {[%clk 0:02:49.1]} 11. O-O {[%clk 0:02:50.3]}
11... Re8 {[%clk 0:02:43.9]} 12. Rfe1 {[%clk 0:02:47.9]} 12... exd4 {[%clk
0:02:27.4]} 13. exd4 {[%clk 0:02:47.9]} 13... g5 {[%clk 0:02:27.4]} 14. Bg3
{[%clk 0:02:48]} 14... Ne4 {[%clk 0:02:27.7]} 15. Nxe4 {[%clk 0:02:38.4]} 15...
Bxe4 {[%clk 0:02:26.3]} 16. Qd1 {[%clk 0:02:32.3]} 16... Qf6 {[%clk 0:02:14.7]}
17. Nd2 {[%clk 0:02:25.3]} 17... Qxd4 {[%clk 0:02:06.7]} 18. Nxe4 {[%clk
0:02:24.7]} 18... Rxe4 {[%clk 0:01:59.5]} 19. Bf3 {[%clk 0:02:19.7]} 19... Rxe1+
{[%clk 0:01:56]} 20. Qxe1 {[%clk 0:02:20.6]} 20... Rd8 {[%clk 0:01:52.1]} 21.
Bd5 {[%clk 0:02:02.4]} 21... Be5 {[%clk 0:01:38.3]} 22. Rd1 {[%clk 0:01:55.5]}
22... Qxb2 {[%clk 0:01:32.5]} 23. Qe4 {[%clk 0:01:55.7]} 23... Bxg3 {[%clk
0:01:24.8]} 24. fxg3 {[%clk 0:01:55.1]} 24... Qe5 {[%clk 0:01:06.9]} 25. Qg6+
{[%clk 0:01:52.1]} 25... Qg7 {[%clk 0:01:07.2]} 26. Bxf7+ {[%clk 0:01:04.7]}
26... Kh8 {[%clk 0:00:57.1]} 27. Qe6 {[%clk 0:00:57.5]} 27... Ne5 {[%clk
0:00:49]} 28. Bh5 {[%clk 0:00:57.1]} 28... Rf8 {[%clk 0:00:49.1]} 29. Re1 {[%clk
0:00:52.1]} 29... Qf6 {[%clk 0:00:46.2]} 30. Qxf6+ {[%clk 0:00:52.2]} 30... Rxf6
{[%clk 0:00:47.1]} 31. Bf3 {[%clk 0:00:46.6]} 31... Rxf3 {[%clk 0:00:42.4]} 32.
Rxe5 {[%clk 0:00:46.8]} 32... dxe5 {[%clk 0:00:42]} 33. gxf3 {[%clk 0:00:47.7]}
33... Kg7 {[%clk 0:00:41.9]} 34. Kf2 {[%clk 0:00:48.6]} 34... Kf6 {[%clk
0:00:42.1]} 35. Ke3 {[%clk 0:00:49]} 35... Ke6 {[%clk 0:00:41.6]} 36. Ke4 {[%clk
0:00:45.4]} 36... c6 {[%clk 0:00:41.9]} 37. a4 {[%clk 0:00:42.3]} 37... a6
{[%clk 0:00:41.8]} 38. Kd3 {[%clk 0:00:19.2]} 38... b5 {[%clk 0:00:36.8]} 39.
cxb5 {[%clk 0:00:20.1]} 39... cxb5 {[%clk 0:00:37]} 40. axb5 {[%clk 0:00:16.7]}
40... axb5 {[%clk 0:00:37.9]} 41. Kc3 {[%clk 0:00:14.4]} 41... Kd5 {[%clk
0:00:38.4]} 42. Kb4 {[%clk 0:00:05.6]} 42... Kd4 {[%clk 0:00:39.3]} 43. f4
{[%clk 0:00:03.3]} 43... exf4 {[%clk 0:00:39.1]} 0-1

[Event "*** Titled Tuesday Blitz"]
[Site "Chess.com"]
[Date "2020.11.10"]
[Round "6"]
[White "Anna_ChessMate"]
[Black "Semen_Khanin"]
[Result "0-1"]
[WhiteElo "2615"]
[BlackElo "2790"]
[TimeControl "180+1"]
[EndTime "11:09:55 PST"]
[Termination "Semen_Khanin won on time"]

1. d4 {[%clk 0:03:00.9]} 1... Nf6 {[%clk 0:02:59.7]} 2. c4 {[%clk 0:03:01.2]}
2... e6 {[%clk 0:03:00]} 3. Nf3 {[%clk 0:03:01]} 3... d5 {[%clk 0:02:59.7]} 4.
Nc3 {[%clk 0:03:00.1]} 4... Bb4 {[%clk 0:02:59.2]} 5. Bg5 {[%clk 0:02:59.9]}
5... h6 {[%clk 0:02:59]} 6. Bxf6 {[%clk 0:02:59.6]} 6... Qxf6 {[%clk 0:02:59.3]}
7. Qa4+ {[%clk 0:02:52.1]} 7... Nc6 {[%clk 0:02:59.5]} 8. e3 {[%clk 0:02:52.6]}
8... O-O {[%clk 0:02:58.9]} 9. cxd5 {[%clk 0:02:52.7]} 9... exd5 {[%clk
0:02:57.4]} 10. Be2 {[%clk 0:02:52.9]} 10... Be6 {[%clk 0:02:53.3]} 11. O-O
{[%clk 0:02:52.6]} 11... a6 {[%clk 0:02:52.3]} 12. Rac1 {[%clk 0:02:52.4]} 12...
Bd6 {[%clk 0:02:50.7]} 13. Rfd1 {[%clk 0:02:47.8]} 13... Ne7 {[%clk 0:02:50.1]}
14. e4 {[%clk 0:02:41.7]} 14... dxe4 {[%clk 0:02:48.7]} 15. Nxe4 {[%clk
0:02:42.6]} 15... Qf4 {[%clk 0:02:49]} 16. Nxd6 {[%clk 0:02:29.2]} 16... Qxd6
{[%clk 0:02:48.9]} 17. Qc2 {[%clk 0:02:23.7]} 17... Nd5 {[%clk 0:02:47.7]} 18.
Ne5 {[%clk 0:02:18.1]} 18... Rad8 {[%clk 0:02:43.1]} 19. Bf3 {[%clk 0:02:13.2]}
19... c6 {[%clk 0:02:35.4]} 20. a3 {[%clk 0:02:12.4]} 20... Rfe8 {[%clk
0:02:33.8]} 21. h3 {[%clk 0:02:06.3]} 21... f6 {[%clk 0:02:11]} 22. Nc4 {[%clk
0:02:02.4]} 22... Qf4 {[%clk 0:02:08.8]} 23. Qd2 {[%clk 0:01:37]} 23... Qxd2
{[%clk 0:01:55.8]} 24. Rxd2 {[%clk 0:01:37.9]} 24... Bf7 {[%clk 0:01:45.4]} 25.
Na5 {[%clk 0:01:37]} 25... Re7 {[%clk 0:01:45.1]} 26. Kf1 {[%clk 0:01:32.9]}
26... Rde8 {[%clk 0:01:44.7]} 27. b4 {[%clk 0:01:28]} 27... g5 {[%clk
0:01:43.7]} 28. g3 {[%clk 0:01:24.5]} 28... Kg7 {[%clk 0:01:42.6]} 29. Kg2
{[%clk 0:01:24.3]} 29... h5 {[%clk 0:01:41.8]} 30. Nc4 {[%clk 0:01:11.4]} 30...
Rd8 {[%clk 0:01:34.8]} 31. Rcc2 {[%clk 0:01:01]} 31... h4 {[%clk 0:01:32.6]} 32.
Na5 {[%clk 0:00:47.5]} 32... hxg3 {[%clk 0:01:30.5]} 33. Kxg3 {[%clk 0:00:47.5]}
33... Nf4 {[%clk 0:01:28.3]} 34. h4 {[%clk 0:00:47.3]} 34... Rh8 {[%clk
0:01:22.9]} 35. hxg5 {[%clk 0:00:42.1]} 35... fxg5 {[%clk 0:01:22.4]} 36. Bg2
{[%clk 0:00:27.1]} 36... Nh5+ {[%clk 0:00:55.7]} 37. Kg4 {[%clk 0:00:26.5]}
37... Be6+ {[%clk 0:00:39.3]} 38. Kxg5 {[%clk 0:00:20.2]} 38... Kf8 {[%clk
0:00:39.4]} 39. Be4 {[%clk 0:00:04.5]} 39... Rg7+ {[%clk 0:00:38.2]} 40. Bg6
{[%clk 0:00:04.8]} 40... Bf7 {[%clk 0:00:37.1]} 41. d5 {[%clk 0:00:02]} 41...
Bxg6 {[%clk 0:00:34.6]} 0-1

[Event "*** Titled Tuesday Blitz"]
[Site "Chess.com"]
[Date "2020.11.10"]
[Round "6"]
[White "xLuring1"]
[Black "mishanick"]
[Result "0-1"]
[WhiteElo "2373"]
[BlackElo "3025"]
[TimeControl "180+1"]
[EndTime "11:09:55 PST"]
[Termination "mishanick won by resignation"]

1. e4 {[%clk 0:03:00.9]} 1... c5 {[%clk 0:01:57.3]} 2. Nf3 {[%clk 0:02:57.7]}
2... d6 {[%clk 0:01:57.8]} 3. d4 {[%clk 0:02:57.6]} 3... cxd4 {[%clk 0:01:57.8]}
4. Nxd4 {[%clk 0:02:58.5]} 4... Nf6 {[%clk 0:01:58.4]} 5. Nc3 {[%clk 0:02:59.1]}
5... a6 {[%clk 0:01:59]} 6. a4 {[%clk 0:02:58.4]} 6... e5 {[%clk 0:01:59.4]} 7.
Nb3 {[%clk 0:02:53.3]} 7... Qc7 {[%clk 0:01:59.4]} 8. a5 {[%clk 0:02:51.2]} 8...
Be7 {[%clk 0:01:59.2]} 9. Be2 {[%clk 0:02:50]} 9... Be6 {[%clk 0:01:53.7]} 10.
O-O {[%clk 0:02:48.4]} 10... Nc6 {[%clk 0:01:48.3]} 11. Nd5 {[%clk 0:02:38.6]}
11... Bxd5 {[%clk 0:01:48.3]} 12. exd5 {[%clk 0:02:38.8]} 12... Nb8 {[%clk
0:01:47.9]} 13. c4 {[%clk 0:02:34.1]} 13... Nbd7 {[%clk 0:01:45.2]} 14. Be3
{[%clk 0:02:33.3]} 14... O-O {[%clk 0:01:45.8]} 15. Rc1 {[%clk 0:02:25.8]} 15...
Ne4 {[%clk 0:01:38.4]} 16. Kh1 {[%clk 0:02:13]} 16... Rad8 {[%clk 0:01:33.1]}
17. f3 {[%clk 0:02:04.2]} 17... Nec5 {[%clk 0:01:33]} 18. Nxc5 {[%clk 0:02:04]}
18... dxc5 {[%clk 0:01:33.9]} 19. Bd2 {[%clk 0:01:59.7]} 19... Bd6 {[%clk
0:01:33.6]} 20. Bc3 {[%clk 0:01:59.6]} 20... f5 {[%clk 0:01:34.1]} 21. Bd3
{[%clk 0:01:57.2]} 21... g6 {[%clk 0:01:33.5]} 22. b3 {[%clk 0:01:56.7]} 22...
Rde8 {[%clk 0:01:33.6]} 23. Qc2 {[%clk 0:01:54.2]} 23... Re7 {[%clk 0:01:33.6]}
24. Rce1 {[%clk 0:01:53.3]} 24... Nf6 {[%clk 0:01:31.2]} 25. Qd2 {[%clk
0:01:49.4]} 25... Nh5 {[%clk 0:01:29.4]} 26. Qg5 {[%clk 0:01:44.8]} 26... Nf4
{[%clk 0:01:26.5]} 27. Bc2 {[%clk 0:01:39.5]} 27... Ref7 {[%clk 0:01:06.4]} 28.
g3 {[%clk 0:01:34.8]} 28... Nh5 {[%clk 0:01:06.3]} 29. Re2 {[%clk 0:01:31.4]}
29... Re8 {[%clk 0:01:03.7]} 30. Rfe1 {[%clk 0:01:30.8]} 30... Ng7 {[%clk
0:00:55.3]} 31. Qc1 {[%clk 0:01:18]} 31... Rfe7 {[%clk 0:00:52.6]} 32. Qb2
{[%clk 0:01:15.1]} 32... Nh5 {[%clk 0:00:50.7]} 33. Qc1 {[%clk 0:01:07.5]} 33...
Nf6 {[%clk 0:00:44.1]} 34. Qg5 {[%clk 0:01:06.4]} 34... Kf7 {[%clk 0:00:44.3]}
35. f4 {[%clk 0:00:57.1]} 35... Ng4 {[%clk 0:00:39]} 36. h3 {[%clk 0:00:43.7]}
36... exf4 {[%clk 0:00:38.2]} 37. Rxe7+ {[%clk 0:00:40.4]} 37... Bxe7 {[%clk
0:00:37.5]} 38. Rxe7+ {[%clk 0:00:33.4]} 38... Qxe7 {[%clk 0:00:37.8]} 39. Qxf4
{[%clk 0:00:24.9]} 39... Ne3 {[%clk 0:00:30.8]} 40. Bd3 {[%clk 0:00:21.1]} 40...
Nd1 {[%clk 0:00:28.5]} 41. Bd2 {[%clk 0:00:20.3]} 41... Qe5 {[%clk 0:00:28]} 42.
Qf3 {[%clk 0:00:19.8]} 42... Qd4 {[%clk 0:00:23.7]} 43. d6 {[%clk 0:00:19.1]}
43... Nf2+ {[%clk 0:00:23.6]} 44. Kh2 {[%clk 0:00:19]} 44... Nxd3 {[%clk
0:00:23.6]} 45. Qxb7+ {[%clk 0:00:18.6]} 45... Kg8 {[%clk 0:00:23.7]} 0-1

[Event "*** Titled Tuesday Blitz"]
[Site "Chess.com"]
[Date "2020.11.10"]
[Round "6"]
[White "Vanina1989"]
[Black "Happy1712Drummer"]
[Result "0-1"]
[WhiteElo "2634"]
[BlackElo "2224"]
[TimeControl "180+1"]
[EndTime "11:09:56 PST"]
[Termination "Happy1712Drummer won on time"]

1. d4 {[%clk 0:02:36.2]} 1... e6 {[%clk 0:02:59.1]} 2. c4 {[%clk 0:02:35.9]}
2... c6 {[%clk 0:02:58.1]} 3. Nf3 {[%clk 0:02:35.9]} 3... d5 {[%clk 0:02:57.6]}
4. Nc3 {[%clk 0:02:35.2]} 4... Nf6 {[%clk 0:02:56.2]} 5. Bg5 {[%clk 0:02:34.8]}
5... Nbd7 {[%clk 0:02:54.7]} 6. e3 {[%clk 0:02:34.7]} 6... Qa5 {[%clk
0:02:53.6]} 7. Nd2 {[%clk 0:02:35]} 7... Bb4 {[%clk 0:02:44.4]} 8. Qc2 {[%clk
0:02:34.2]} 8... b6 {[%clk 0:02:39.4]} 9. Be2 {[%clk 0:02:33.8]} 9... Ba6 {[%clk
0:02:33.3]} 10. O-O {[%clk 0:02:33.5]} 10... dxc4 {[%clk 0:02:27.2]} 11. Bxf6
{[%clk 0:02:33.1]} 11... Nxf6 {[%clk 0:02:26.5]} 12. Bxc4 {[%clk 0:02:33.4]}
12... Bxc3 {[%clk 0:02:23.3]} 13. bxc3 {[%clk 0:02:30.5]} 13... O-O {[%clk
0:02:15]} 14. e4 {[%clk 0:02:20.9]} 14... c5 {[%clk 0:02:04]} 15. Nb3 {[%clk
0:02:15.9]} 15... Qa4 {[%clk 0:01:55.1]} 16. Bxa6 {[%clk 0:02:15.6]} 16... Qxa6
{[%clk 0:01:52.4]} 17. e5 {[%clk 0:02:15.8]} 17... Nd5 {[%clk 0:01:45.7]} 18.
dxc5 {[%clk 0:02:15.1]} 18... Qc4 {[%clk 0:01:43.7]} 19. Rac1 {[%clk 0:01:51.3]}
19... bxc5 {[%clk 0:01:30.3]} 20. Rfe1 {[%clk 0:01:50.6]} 20... Qg4 {[%clk
0:01:09.7]} 21. f3 {[%clk 0:01:41]} 21... Qg5 {[%clk 0:01:04.3]} 22. Nxc5 {[%clk
0:01:38.4]} 22... Rfc8 {[%clk 0:00:59.1]} 23. Ne4 {[%clk 0:01:00.9]} 23... Qxe5
{[%clk 0:00:58]} 24. c4 {[%clk 0:01:01.4]} 24... Nf4 {[%clk 0:00:36.5]} 25. Rcd1
{[%clk 0:00:52.8]} 25... f5 {[%clk 0:00:25.9]} 26. Nf2 {[%clk 0:00:48]} 26...
Qc5 {[%clk 0:00:20.4]} 27. Rc1 {[%clk 0:00:42.3]} 27... Rd8 {[%clk 0:00:18.3]}
28. Kh1 {[%clk 0:00:40.6]} 28... Rd4 {[%clk 0:00:15.6]} 29. g3 {[%clk
0:00:39.5]} 29... Ng6 {[%clk 0:00:13]} 30. Rxe6 {[%clk 0:00:38.9]} 30... Rad8
{[%clk 0:00:12.9]} 31. Qe2 {[%clk 0:00:32.4]} 31... Rd2 {[%clk 0:00:11.3]} 32.
Re8+ {[%clk 0:00:31]} 32... Rxe8 {[%clk 0:00:11.4]} 33. Qxe8+ {[%clk 0:00:30.8]}
33... Nf8 {[%clk 0:00:12.3]} 34. Nh3 {[%clk 0:00:27.5]} 34... Qd4 {[%clk
0:00:11]} 35. Rb1 {[%clk 0:00:12.6]} 35... Qd3 {[%clk 0:00:10.3]} 0-1

[Event "*** Titled Tuesday Blitz"]
[Site "Chess.com"]
[Date "2020.11.10"]
[Round "6"]
[White "GM_Crest"]
[Black "Hikaru"]
[Result "0-1"]
[WhiteElo "2737"]
[BlackElo "3201"]
[TimeControl "180+1"]
[EndTime "11:09:58 PST"]
[Termination "Hikaru won on time"]

1. d4 {[%clk 0:03:00.9]} 1... g6 {[%clk 0:02:57.6]} 2. c4 {[%clk 0:02:58.4]}
2... Bg7 {[%clk 0:02:57.8]} 3. Nc3 {[%clk 0:02:57.8]} 3... c5 {[%clk 0:02:57.6]}
4. d5 {[%clk 0:02:57.8]} 4... Bxc3+ {[%clk 0:02:58.5]} 5. bxc3 {[%clk
0:02:58.2]} 5... f5 {[%clk 0:02:59.4]} 6. e4 {[%clk 0:02:58.6]} 6... fxe4 {[%clk
0:02:56.8]} 7. f3 {[%clk 0:02:59.1]} 7... e5 {[%clk 0:02:53]} 8. dxe6 {[%clk
0:02:36.6]} 8... Qe7 {[%clk 0:02:48.7]} 9. Bf4 {[%clk 0:02:21.3]} 9... Qxe6
{[%clk 0:02:45.5]} 10. Qd6 {[%clk 0:02:21.1]} 10... Nc6 {[%clk 0:02:39.5]} 11.
O-O-O {[%clk 0:02:13.2]} 11... Nf6 {[%clk 0:02:36.4]} 12. Ne2 {[%clk 0:01:41.3]}
12... exf3 {[%clk 0:02:24.2]} 13. gxf3 {[%clk 0:01:36.8]} 13... Qxd6 {[%clk
0:02:24.6]} 14. Bxd6 {[%clk 0:01:36.4]} 14... b6 {[%clk 0:02:23.5]} 15. Bh3
{[%clk 0:01:36.1]} 15... Kf7 {[%clk 0:02:21.2]} 16. Nf4 {[%clk 0:01:34.8]} 16...
Ba6 {[%clk 0:02:18.5]} 17. Nd5 {[%clk 0:01:27.7]} 17... Bxc4 {[%clk 0:02:15.9]}
18. Nxf6 {[%clk 0:01:24.9]} 18... Kxf6 {[%clk 0:02:16.8]} 19. Bxd7 {[%clk
0:01:23.3]} 19... Ne5 {[%clk 0:02:12.6]} 20. Bh3 {[%clk 0:01:02.9]} 20... Nd3+
{[%clk 0:01:41.9]} 21. Kc2 {[%clk 0:00:54.3]} 21... Nf2 {[%clk 0:01:42.8]} 22.
Rhe1 {[%clk 0:00:46.4]} 22... Nxh3 {[%clk 0:01:36.5]} 23. Be5+ {[%clk
0:00:44.4]} 23... Kf5 {[%clk 0:01:36.1]} 24. Bxh8 {[%clk 0:00:39.5]} 24... Rxh8
{[%clk 0:01:37]} 25. Rd7 {[%clk 0:00:38.7]} 25... Ng5 {[%clk 0:01:36.2]} 26.
Rxa7 {[%clk 0:00:36.5]} 26... Nxf3 {[%clk 0:01:36.2]} 27. Ree7 {[%clk
0:00:35.6]} 27... Rd8 {[%clk 0:01:34.1]} 28. Rxh7 {[%clk 0:00:32.1]} 28... Rd2+
{[%clk 0:01:33.2]} 29. Kc1 {[%clk 0:00:32.4]} 29... Rxa2 {[%clk 0:01:32]} 30.
Rxa2 {[%clk 0:00:23.9]} 30... Bxa2 {[%clk 0:01:32.9]} 31. h3 {[%clk 0:00:23.4]}
31... Bb3 {[%clk 0:01:25.6]} 32. Rb7 {[%clk 0:00:22.9]} 32... c4 {[%clk
0:01:25.6]} 33. Rxb6 {[%clk 0:00:22.7]} 33... Ng5 {[%clk 0:01:24.4]} 34. Kd2
{[%clk 0:00:20.9]} 34... Nxh3 {[%clk 0:01:23.6]} 35. Ke3 {[%clk 0:00:21.5]}
35... Ng5 {[%clk 0:01:23.4]} 36. Rb5+ {[%clk 0:00:20.3]} 36... Kf6 {[%clk
0:01:23.9]} 37. Rb6+ {[%clk 0:00:20.5]} 37... Ne6 {[%clk 0:01:24.5]} 38. Ke4
{[%clk 0:00:20.6]} 38... Bd1 {[%clk 0:01:13.7]} 39. Kd5 {[%clk 0:00:18.7]} 39...
Bf3+ {[%clk 0:01:13.6]} 40. Kxc4 {[%clk 0:00:18]} 40... Kf5 {[%clk 0:01:13.1]}
41. Kd3 {[%clk 0:00:17.6]} 41... Nf4+ {[%clk 0:01:13.7]} 42. Kd2 {[%clk
0:00:16.9]} 42... Bd5 {[%clk 0:01:05.9]} 43. Rb8 {[%clk 0:00:16.4]} 43... g5
{[%clk 0:01:04.4]} 44. Ke3 {[%clk 0:00:16.5]} 44... Be6 {[%clk 0:00:52.5]} 45.
Rf8+ {[%clk 0:00:15.4]} 45... Ke5 {[%clk 0:00:51.6]} 46. Re8 {[%clk 0:00:14.7]}
46... Nd5+ {[%clk 0:00:51]} 47. Kd3 {[%clk 0:00:13.1]} 47... Nb6 {[%clk
0:00:50.8]} 48. Ke3 {[%clk 0:00:11.7]} 48... Nc4+ {[%clk 0:00:50.6]} 49. Kf3
{[%clk 0:00:11.2]} 49... Nd6 {[%clk 0:00:49.7]} 50. Rb8 {[%clk 0:00:06.5]} 50...
g4+ {[%clk 0:00:48.2]} 51. Kg2 {[%clk 0:00:03.9]} 51... Nf5 {[%clk 0:00:45.5]}
52. Re8 {[%clk 0:00:01.2]} 52... Kf6 {[%clk 0:00:43.8]} 53. Kf2 {[%clk
0:00:01.1]} 53... Bd5 {[%clk 0:00:43.7]} 0-1

[Event "*** Titled Tuesday Blitz"]
[Site "Chess.com"]
[Date "2020.11.10"]
[Round "6"]
[White "Bastiandash"]
[Black "zajka-molotok"]
[Result "1-0"]
[WhiteElo "2367"]
[BlackElo "2505"]
[TimeControl "180+1"]
[EndTime "11:09:58 PST"]
[Termination "Bastiandash won on time"]

1. d4 {[%clk 0:03:00.9]} 1... Nf6 {[%clk 0:02:59.4]} 2. Nf3 {[%clk 0:02:58.9]}
2... e6 {[%clk 0:02:55.1]} 3. Bg5 {[%clk 0:02:58.2]} 3... c5 {[%clk 0:02:53.3]}
4. e3 {[%clk 0:02:57.3]} 4... h6 {[%clk 0:02:51]} 5. Bh4 {[%clk 0:02:56.8]} 5...
Nc6 {[%clk 0:02:38.8]} 6. c3 {[%clk 0:02:56.4]} 6... d5 {[%clk 0:02:34.3]} 7.
Bd3 {[%clk 0:02:55.2]} 7... g5 {[%clk 0:02:33]} 8. Bg3 {[%clk 0:02:52.1]} 8...
Nh5 {[%clk 0:02:31.7]} 9. Nbd2 {[%clk 0:02:42.4]} 9... Qb6 {[%clk 0:02:19.9]}
10. Rb1 {[%clk 0:02:39.6]} 10... Nxg3 {[%clk 0:02:12.4]} 11. hxg3 {[%clk
0:02:34.6]} 11... Bg7 {[%clk 0:02:13]} 12. Qe2 {[%clk 0:02:33.7]} 12... Bd7
{[%clk 0:02:11.8]} 13. O-O {[%clk 0:02:27.2]} 13... O-O-O {[%clk 0:02:02.4]} 14.
dxc5 {[%clk 0:02:18.8]} 14... Qxc5 {[%clk 0:02:03.3]} 15. e4 {[%clk 0:02:19.7]}
15... g4 {[%clk 0:01:51.3]} 16. Nh2 {[%clk 0:01:59.9]} 16... h5 {[%clk
0:01:40.9]} 17. Rfe1 {[%clk 0:01:50.3]} 17... Ne5 {[%clk 0:01:18.7]} 18. b4
{[%clk 0:01:16.4]} 18... Qc7 {[%clk 0:01:13.3]} 19. c4 {[%clk 0:01:12.3]} 19...
dxc4 {[%clk 0:00:40.4]} 20. Bxc4 {[%clk 0:00:55.2]} 20... Kb8 {[%clk 0:00:29.7]}
21. Rbc1 {[%clk 0:00:37.4]} 21... Qb6 {[%clk 0:00:28.7]} 22. a3 {[%clk
0:00:34.5]} 22... h4 {[%clk 0:00:24.7]} 23. Nhf1 {[%clk 0:00:32.1]} 23... Bh6
{[%clk 0:00:19.5]} 24. Rc2 {[%clk 0:00:29.9]} 24... hxg3 {[%clk 0:00:18.9]} 25.
Nxg3 {[%clk 0:00:29.6]} 25... Ba4 {[%clk 0:00:17.8]} 26. Bb3 {[%clk 0:00:26]}
26... Rxd2 {[%clk 0:00:14.1]} 27. Rxd2 {[%clk 0:00:24.6]} 27... Bxd2 {[%clk
0:00:13.5]} 28. Qxd2 {[%clk 0:00:20.6]} 28... Bxb3 {[%clk 0:00:13.4]} 29. Qc3
{[%clk 0:00:17.5]} 29... f6 {[%clk 0:00:06.5]} 30. Qxb3 {[%clk 0:00:17.5]} 30...
a6 {[%clk 0:00:04.6]} 31. Qc3 {[%clk 0:00:17.2]} 31... Ka7 {[%clk 0:00:04.4]}
32. a4 {[%clk 0:00:15.1]} 32... Rd8 {[%clk 0:00:02.8]} 33. b5 {[%clk 0:00:14]}
33... Qd4 {[%clk 0:00:02.5]} 34. Qc2 {[%clk 0:00:08.2]} 34... Qd2 {[%clk
0:00:02.3]} 35. Qb1 {[%clk 0:00:07.7]} 1-0